bitfinex/quotes_SOLUSD_20260228
["timestamp","ask_amount","ask_price","bid_price","bid_amount"]
[1772319947346,0.2,84.66,84.633,1.45231755]
[1772319950343,0.2,84.66,84.635,1.45231755]
[1772319952049,1.45702358,84.658,84.636,11.81530318]
[1772319952745,1.65702358,84.65,84.63,1.45231755]
[1772319952948,1.65702358,84.65,84.62,3.00627187]
[1772319952949,0.2,84.65,84.632,1.45231755]
[1772319954041,0.2,84.65,84.634,1.45231755]
[1772319956453,0.2,84.65,84.635,11.81544278]
[1772319956656,0.2,84.65,84.635,13.26776033]
[1772319956846,0.2,84.65,84.636,1.45231755]
[1772319959355,0.2,84.65,84.637,13.26748113]
[1772319960254,0.2,84.66,84.639,1.45231755]
[1772319960443,4.66329545,84.67,84.652,1.45231755]
[1772319960444,1e-08,84.67,84.652,1.45231755]
[1772319960646,1.45702358,84.693,84.661,1.45231755]
[1772319960947,7.58561827,84.7,84.671,1.45231755]
[1772319961956,1.45702358,84.689,84.661,1.45231755]
[1772319962560,1.45702358,84.689,84.663,1.45231755]
[1772319963451,1.45702358,84.669,84.635,1.45231755]
[1772319964459,3.00627187,84.66,84.635,1.45231755]
[1772319964660,1.45702358,84.662,84.637,1.45231755]
[1772319965558,1.45702358,84.696,84.651,1.45231755]
[1772319965741,1.45702358,84.696,84.661,1.45231755]
[1772319966641,1.45702358,84.696,84.663,1.45231755]
[1772319966857,3.00627187,84.74,84.692,1.3993523]
[1772319967155,1.45702358,84.719,84.691,1.3993523]
[1772319967357,1.45702358,84.719,84.7,3.00627187]
[1772319968652,1.45702358,84.719,84.701,11.80623605]
[1772319970252,1.45702358,84.719,84.7,3.00627187]
[1772319970956,1.45702358,84.719,84.7,14.81252312]
[1772319972564,3.00627187,84.75,84.7,14.81252312]
[1772319972565,1.45702358,84.746,84.712,1.17750361]
[1772319972865,1.45702358,84.746,84.72,4.18377548]
[1772319973053,1.45702358,84.744,84.72,4.18377548]
[1772319975168,1.45702358,84.751,84.721,1.16549499]
[1772319975357,1.45702358,84.75,84.721,1.16549499]
[1772319976249,1.45702358,84.75,84.72,3.00627187]
[1772319977159,1.45702358,84.75,84.711,11.80472231]
[1772319977160,1.48185923,84.748,84.711,11.80472231]
[1772319978255,1.48185923,84.748,84.7,32.52221047]
[1772319978256,1.48185923,84.746,84.71,3.00627187]
[1772319980173,1.48185923,84.744,84.71,14.81116702]
[1772319982469,1.48185923,84.742,84.71,14.81116702]
[1772319982973,1.48185923,84.742,84.71,15.92612815]
[1772319983958,1.48185923,84.74,84.71,15.92612815]
[1772319985562,1.48185923,84.74,84.712,11.80470299]
[1772319985882,1.48185923,84.74,84.713,1.0993032]
[1772319986561,13.28280094,84.739,84.713,1.0993032]
[1772319986760,1.48185923,84.738,84.713,1.0993032]
[1772319990261,1.48185923,84.736,84.713,1.0993032]
[1772319990685,1.48185923,84.744,84.717,1.07438291]
[1772319990872,11.80038469,84.743,84.717,1.07438291]
[1772319991077,1.48185923,84.742,84.717,1.07438291]
[1772319992282,1.48185923,84.74,84.717,1.07438291]
[1772319994283,1.48185923,84.748,84.719,1.05545756]
[1772319995567,0.2,84.76,84.743,1.0508613]
[1772319995568,1e-08,84.76,84.743,1.0508613]
[1772319995767,1e-08,84.76,84.75,4.05713317]
[1772319996379,1e-08,84.76,84.75,1.0508613]
[1772319996580,1e-08,84.76,84.742,11.80052394]
[1772320000391,1.48185924,84.76,84.742,11.80052394]
[1772320001894,1.48185924,84.76,84.72,2.99647058]
[1772320001895,1.48185923,84.759,84.72,2.99647058]
[1772320002270,1.48185923,84.757,84.721,11.80344896]
[1772320002871,1.48185923,84.757,84.721,41.31207137]
[1772320005879,11.79857473,84.756,84.721,41.31207137]
[1772320006081,1.48103331,84.755,84.721,41.31207137]
[1772320010799,1.48103331,84.755,84.73,2.99647058]
[1772320012003,1.48103331,84.755,84.731,11.80205591]
[1772320013806,1.48103331,84.739,84.7,2.99647058]
[1772320014114,1.48103331,84.737,84.701,11.80623605]
[1772320015184,1.48103331,84.737,84.71,2.99647058]
[1772320015805,1.48103331,84.753,84.73,2.99647058]
[1772320016198,1.48103331,84.753,84.72,2.99647058]
[1772320016907,1.48103331,84.753,84.73,2.99647058]
[1772320017284,1e-08,84.76,84.73,2.99647058]
[1772320018504,1e-08,84.76,84.74,2.99647058]
[1772320019208,0.2,84.77,84.75,2.99647058]
[1772320020210,1e-08,84.78,84.76,2.99647058]
[1772320020392,0.2,84.79,84.77,2.99647058]
[1772320020710,5.36086188,84.857,84.77,2.99647058]
[1772320020711,3.19647058,84.82,84.772,1.38574956]
[1772320020931,11.78981124,84.819,84.772,1.38574956]
[1772320021104,3.69383402,84.816,84.772,1.38574956]
[1772320021291,3.69383402,84.816,84.738,1.18010809]
[1772320021292,2.99647058,84.8,84.766,1.38287164]
[1772320021486,2.99647058,84.81,84.766,1.38287164]
[1772320021691,2.99647058,84.81,84.764,11.79739445]
[1772320021692,3.69383402,84.816,84.771,1.38287164]
[1772320022209,2.99647058,84.81,84.771,1.38287164]
[1772320022511,3.69383402,84.816,84.771,1.38287164]
[1772320022814,1.33009049,84.814,84.773,1.38002677]
[1772320023314,11.79036726,84.815,84.773,1.38002677]
[1772320023315,1.33009049,84.809,84.773,1.38002677]
[1772320025418,1.33009049,84.809,84.774,13.16775627]
[1772320025419,1.33009049,84.808,84.774,13.16775627]
[1772320025800,1.33009049,84.808,84.775,1.37168673]
[1772320025995,0.2,84.82,84.774,11.79606954]
[1772320025996,1.33009049,84.819,84.791,1.37168673]
[1772320026200,0.2,84.82,84.791,1.37168673]
[1772320026423,1.53009049,84.82,84.8,1.37006855]
[1772320027200,1.53009049,84.82,84.801,11.79231376]
[1772320027717,0.2,84.82,84.802,1.36846895]
[1772320028227,1.53009049,84.82,84.796,1.36846895]
[1772320028718,1.53009049,84.82,84.795,11.79308197]
[1772320029798,1.53009049,84.82,84.764,60.16676487]
[1772320029799,1.33009049,84.819,84.781,11.79509559]
[1772320030005,1.33009049,84.809,84.776,11.79574261]
[1772320030501,1e-08,84.821,84.801,1.36377956]
[1772320030700,1e-08,84.821,84.81,2.99647058]
[1772320031107,1e-08,84.821,84.801,1.36377956]
[1772320031502,1.33009049,84.82,84.79,2.99647058]
[1772320031933,1.33009049,84.82,84.791,11.79370452]
[1772320032108,1.33009049,84.82,84.792,1.3622522]
[1772320032308,1.33009049,84.82,84.772,1.36074239]
[1772320032309,1.33009049,84.819,84.772,1.36074239]
[1772320032515,1.33009049,84.819,84.77,2.99647058]
[1772320032516,1.33009049,84.819,84.774,1.36074239]
[1772320032718,1.33009049,84.819,84.78,2.99647058]
[1772320033330,1.33009049,84.819,84.78,4.35572049]
[1772320033516,1.33009049,84.819,84.781,1.35924991]
[1772320033826,1.33009049,84.817,84.78,2.99647058]
[1772320034029,1.33009049,84.817,84.776,1.35924991]
[1772320034236,1.33009049,84.817,84.78,2.99647058]
[1772320034612,1.33009049,84.817,84.781,1.35777458]
[1772320035728,1.33009049,84.817,84.783,1.3563162]
[1772320036034,1.33009049,84.815,84.776,11.79567954]
[1772320036331,1.33009049,84.809,84.771,11.79646939]
[1772320036527,1.33009049,84.809,84.77,2.99647058]
[1772320036735,1.33009049,84.809,84.77,14.79298249]
[1772320037741,1.40607653,84.789,84.74,1.35204077]
[1772320037915,1.40607653,84.789,84.75,2.99647058]
[1772320038228,1.40607653,84.789,84.76,2.99647058]
[1772320038429,1.40607653,84.789,84.77,2.99647058]
[1772320039013,1.40607653,84.789,84.761,1.35064825]
[1772320040635,1.40607653,84.789,84.762,13.14565054]
[1772320042125,11.79310648,84.796,84.763,1.3465659]
[1772320042126,1.40607653,84.796,84.763,1.3465659]
[1772320043031,1.40607653,84.796,84.764,11.79746118]
[1772320043828,1.40607653,84.794,84.764,11.79746118]
[1772320044139,1.40607653,84.794,84.765,1.34392188]
[1772320044922,1.40607653,84.794,84.764,41.29111414]
[1772320045625,1.40607653,84.794,84.764,13.13879944]
[1772320046932,1.40607653,84.794,84.767,1.34006866]
[1772320047138,1.40607653,84.794,84.771,1.34006866]
[1772320047531,1.40607653,84.806,84.78,2.99647058]
[1772320047923,1.40607653,84.806,84.766,41.29013991]
[1772320047924,1.40607653,84.806,84.77,2.99647058]
[1772320048140,1.40607653,84.806,84.766,11.79718283]
[1772320048835,1.40607653,84.804,84.762,11.79773955]
[1772320049739,1.40607653,84.804,84.762,13.13408624]
[1772320050331,1.40607653,84.804,84.763,1.33513442]
[1772320051924,1.40607653,84.802,84.77,2.99647058]
[1772320052132,1.40607653,84.802,84.771,1.33393608]
[1772320054150,1.40607653,84.802,84.772,11.79634785]
[1772320055049,1.40607653,84.809,84.781,1.33042301]
[1772320055247,1.40607653,84.809,84.78,4.32574936]
[1772320055551,1.40607653,84.809,84.78,1.32927878]
[1772320056653,1.40607653,84.807,84.774,1.3281477]
[1772320058228,1.40607653,84.807,84.776,1.3270296]
[1772320059053,1.40607653,84.807,84.78,2.99647058]
[1772320059234,1.40607653,84.807,84.78,2.99348511]
[1772320059541,1.40607653,84.807,84.78,4.31831691]
[1772320060143,1.40607653,84.807,84.781,11.79509559]
[1772320061040,1.40607653,84.805,84.781,11.79509559]
[1772320061234,1.40607653,84.805,84.772,11.79634785]
[1772320061549,1.40607653,84.805,84.773,1.32268419]
[1772320062154,1.40607653,84.805,84.775,1.32268419]
[1772320062337,13.19616078,84.818,84.791,1.32162885]
[1772320062540,1.40607653,84.817,84.791,1.32162885]
[1772320062848,1.40607653,84.817,84.79,2.99348511]
[1772320064560,1.40607653,84.817,84.792,1.3195544]
[1772320064759,1.40607653,84.817,84.791,11.79370452]
[1772320065335,1.3995085,84.815,84.78,2.99348511]
[1772320065545,1.3995085,84.815,84.781,11.79509559]
[1772320066552,1.31265779,84.813,84.781,11.79509559]
[1772320066753,1.31265779,84.809,84.776,11.79569363]
[1772320067035,1.31265779,84.809,84.767,11.79703594]
[1772320068163,1.31265779,84.807,84.764,1.3145732]
[1772320068650,2.99348511,84.8,84.763,11.79760036]
[1772320068854,1.31265779,84.799,84.763,11.79760036]
[1772320070268,1.31265779,84.797,84.763,11.79760036]
[1772320070756,1.31265779,84.797,84.759,11.79814266]
[1772320072248,1.31265779,84.795,84.759,13.10893296]
[1772320072560,1.31265779,84.795,84.76,2.99348511]
[1772320073862,1.31265779,84.789,84.75,2.99348511]
[1772320074061,1.31265779,84.769,84.739,11.80094171]
[1772320074249,2.99348511,84.77,84.739,11.80094171]
[1772320074250,1.31265779,84.767,84.739,11.80094171]
[1772320075565,1.31265779,84.765,84.733,13.10895556]
[1772320076469,1.31265779,84.765,84.733,11.80177734]
[1772320077967,1.31265779,84.763,84.727,11.80248193]
[1772320078966,1.31265779,84.761,84.727,11.80248193]
[1772320080275,1.31265779,84.766,84.731,1.30372927]
[1772320080468,1.31265779,84.765,84.74,2.99348511]
[1772320080675,1.31265779,84.765,84.735,1.30289164]
[1772320080870,1.31265779,84.765,84.741,1.30289164]
[1772320081056,1.31265779,84.771,84.741,1.30289164]
[1772320081551,1.31265779,84.769,84.731,1.30206364]
[1772320082161,1.31265779,84.759,84.714,1.30206364]
[1772320082356,1.31265779,84.759,84.72,4.29473026]
[1772320082559,1.31265779,84.759,84.721,1.30124515]
[1772320083070,2.99348511,84.75,84.715,11.80428495]
[1772320083256,1.31265779,84.749,84.715,11.80428495]
[1772320084453,1.31265779,84.747,84.708,1.29963626]
[1772320085978,1.31265779,84.739,84.708,1.29963626]
[1772320086886,2.99348511,84.76,84.67,1.38105586]
[1772320086887,1.31265779,84.729,84.688,1.29806412]
[1772320087291,41.30378341,84.738,84.68,0.2]
[1772320087292,1.31265779,84.699,84.68,0.2]
[1772320087460,2.99348511,84.69,84.67,0.2]
[1772320087760,1.31265779,84.689,84.645,29.53508278]
[1772320087958,1.31265779,84.679,84.649,11.81348864]
[1772320088778,1.31265779,84.678,84.642,1.32796751]
[1772320088976,1.31265779,84.669,84.634,11.81554159]
[1772320089185,1.31265779,84.659,84.634,11.81554159]
[1772320089471,1.31265779,84.659,84.635,1.32796751]
[1772320090072,1.31265779,84.659,84.634,11.81554159]
[1772320091167,1.31265779,84.659,84.63,0.1]
[1772320091367,1.31265779,84.658,84.63,0.1]
[1772320091777,1.31265779,84.657,84.63,0.1]
[1772320094580,1.31265779,84.655,84.63,0.1]
[1772320096081,2.99348511,84.68,84.631,1.32796751]
[1772320096082,1.31265779,84.668,84.631,1.32796751]
[1772320097691,1.31265779,84.668,84.633,1.25930961]
[1772320099962,1.34404494,84.659,84.633,1.25930961]
[1772320100486,1.34404494,84.659,84.63,0.1]
[1772320101583,1.34404494,84.657,84.63,0.1]
[1772320103087,1.34404494,84.657,84.63,1.35930961]
[1772320103289,1.34404494,84.657,84.63,0.1]
[1772320103588,11.81223274,84.658,84.62,3.09348511]
[1772320103589,1.34404494,84.639,84.62,0.1]
[1772320104672,2.99348511,84.63,84.604,11.81977211]
[1772320104886,1.34404494,84.629,84.604,11.81977211]
[1772320106290,1.34404494,84.639,84.605,1.25930961]
[1772320109983,1.34404494,84.619,84.591,13.08089819]
[1772320110384,1.34404494,84.619,84.592,1.25930961]
[1772320112102,1.34404494,84.619,84.594,1.25930961]
[1772320112599,1.34404494,84.619,84.593,11.82130909]
[1772320112904,1.34404494,84.635,84.601,1.25930961]
[1772320114003,2.99348511,84.63,84.603,1.25930961]
[1772320114192,3.69383402,84.659,84.603,1.25930961]
[1772320114392,2.99348511,84.64,84.603,1.25930961]
[1772320114800,1.34404494,84.639,84.603,1.25930961]
[1772320115111,1.34404494,84.629,84.603,1.25930961]
[1772320116314,1.34404494,84.629,84.604,11.81977211]
[1772320116613,2.99348511,84.62,84.604,11.81977211]
[1772320116920,1.34404494,84.628,84.604,11.81977211]
[1772320117592,1.34404494,84.628,84.605,1.25930961]
[1772320118600,1.34404494,84.628,84.606,11.8194927]
[1772320119287,1.34404494,84.628,84.606,13.07880231]
[1772320120321,1.34404494,84.628,84.607,1.25930961]
[1772320123001,3.00705123,84.63,84.599,29.55091176]
[1772320123002,11.81461103,84.641,84.609,1.25930961]
[1772320123214,4.35109617,84.64,84.609,1.25930961]
[1772320123730,1.34404494,84.639,84.609,1.25930961]
[1772320124323,1.34404494,84.651,84.611,1.25930961]
[1772320124531,1.34404494,84.651,84.61,44.37331999]
[1772320124532,1.34404494,84.651,84.621,1.25930961]
[1772320124904,3.00705123,84.65,84.621,1.25930961]
[1772320125105,4.37458302,84.65,84.621,1.25930961]
[1772320125418,4.37458302,84.65,84.623,1.36497274]
[1772320125608,1.36753179,84.649,84.623,1.36497274]
[1772320127721,1.39498994,84.639,84.624,11.81697863]
[1772320127925,6.15347172,84.676,84.609,11.81907362]
[1772320127926,1.39498994,84.629,84.609,11.81907362]
[1772320128223,1.39498994,84.629,84.609,13.15068298]
[1772320128610,1.39498994,84.629,84.61,1.33160936]
[1772320130407,1.39498994,84.645,84.613,1.33160936]
[1772320131925,1.39498994,84.645,84.615,1.33160936]
[1772320133547,1.39498994,84.645,84.617,1.33160936]
[1772320135319,1.39498994,84.639,84.617,1.33160936]
[1772320139228,1.39498994,84.639,84.618,11.81781654]
[1772320139434,1.39498994,84.639,84.618,41.36235789]
[1772320140529,1.39498994,84.649,84.619,1.33160936]
[1772320140727,3.00705123,84.67,84.621,1.33160936]
[1772320141227,3.00705123,84.67,84.631,1.33160936]
[1772320141433,11.81069813,84.669,84.631,1.33160936]
[1772320142819,1.39498994,84.668,84.631,1.33160936]
[1772320143227,3.00705123,84.67,84.633,1.33160936]
[1772320143627,1.39498994,84.675,84.633,1.33160936]
[1772320144440,1.39498994,84.669,84.633,1.33160936]
[1772320145736,1.39498994,84.669,84.634,11.81558239]
[1772320146043,1.39498994,84.669,84.635,1.33160936]
[1772320146944,1.39498994,84.669,84.637,1.33160936]
[1772320149033,1.39498994,84.669,84.639,1.33160936]
[1772320153045,1.39498994,84.669,84.641,1.33160936]
[1772320153554,0.1,84.74,84.661,1.33160936]
[1772320153733,1.39498994,84.716,84.691,1.33160936]
[1772320154631,1.39498994,84.716,84.692,11.80749067]
[1772320156435,1.27955635,84.709,84.676,11.8096335]
[1772320157449,1.27955635,84.727,84.69,3.00705123]
[1772320157754,1.27955635,84.733,84.701,1.27425761]
[1772320158633,1.27955635,84.733,84.68,3.00705123]
[1772320158634,1.27955635,84.719,84.682,1.27425761]
[1772320159856,1.27955635,84.719,84.681,41.33158559]
[1772320159857,1.27955635,84.726,84.701,1.27425761]
[1772320160655,1.27955635,84.726,84.703,1.27425761]
[1772320161246,13.08157187,84.732,84.703,1.27425761]
[1772320163263,13.08157187,84.732,84.705,1.27425761]
[1772320163649,13.08157187,84.732,84.711,1.27425761]
[1772320164757,11.80246387,84.729,84.711,1.27425761]
[1772320165266,1.27955635,84.727,84.705,1.27425761]
[1772320167670,0.1,84.74,84.711,1.27425761]
[1772320167846,0.1,84.74,84.721,1.27425761]
[1772320169663,0.1,84.74,84.721,13.07766503]
[1772320169870,0.1,84.74,84.722,1.27425761]
[1772320171355,1.37955635,84.76,84.731,1.27425761]
[1772320171968,11.79815712,84.759,84.733,1.27425761]
[1772320172663,1.27955635,84.749,84.722,11.80330964]
[1772320173971,1.27955635,84.737,84.704,1.27425761]
[1772320174472,1.27955635,84.719,84.677,1.27425761]
[1772320174664,1.27955635,84.719,84.68,3.00705123]
[1772320174852,1.27955635,84.719,84.681,1.27425761]
[1772320175975,1.27955635,84.717,84.683,1.27425761]
[1772320176182,11.80322847,84.723,84.691,1.27425761]
[1772320176389,1.27955635,84.724,84.691,1.27425761]
[1772320177760,1.27955635,84.722,84.691,1.27425761]
[1772320177965,1.27955635,84.719,84.691,1.27425761]
[1772320178176,1.27955635,84.717,84.691,1.27425761]
[1772320178371,1.27955635,84.717,84.692,11.80749067]
[1772320179576,1.27955635,84.717,84.687,11.80809763]
[1772320179758,11.80386694,84.718,84.675,11.80986123]
[1772320179759,1.27955635,84.699,84.675,11.80986123]
[1772320180168,1.27955635,84.699,84.669,1.27425761]
[1772320181488,1.27955635,84.699,84.671,1.27425761]
[1772320183366,1.27955635,84.699,84.673,1.27425761]
[1772320185576,1.27955635,84.699,84.675,1.30707618]
[1772320187273,1.27955635,84.699,84.676,11.80972176]
[1772320189667,1.27955635,84.699,84.677,1.31254331]
[1772320191292,1.41073286,84.707,84.679,1.31463507]
[1772320191476,29.50601895,84.729,84.678,11.80944283]
[1772320191477,1.41073286,84.713,84.681,1.31463507]
[1772320191677,1.41073286,84.726,84.701,1.31463507]
[1772320191877,1.41073286,84.726,84.703,1.31463507]
[1772320197285,3.00175648,84.73,84.692,11.80749067]
[1772320197286,1.41073286,84.724,84.692,11.80749067]
[1772320197494,1.41073286,84.719,84.692,11.80749067]
[1772320199892,1.41073286,84.719,84.692,13.12994159]
[1772320200275,1.41073286,84.737,84.7,3.00175648]
[1772320200479,1.41073286,84.737,84.701,1.3234084]
[1772320201689,1.41073286,84.737,84.7,3.00175648]
[1772320201690,1.41073286,84.737,84.703,1.324355]
[1772320202491,1.41073286,84.735,84.703,1.324355]
[1772320204207,1.41073286,84.735,84.704,11.8058179]
[1772320204388,1.41073286,84.733,84.704,11.8058179]
[1772320206205,1.41073286,84.733,84.705,1.32800849]
[1772320207398,1.41073286,84.733,84.7,3.00175648]
[1772320207808,1.41073286,84.733,84.698,1.32976518]
[1772320208391,1.41073286,84.733,84.7,1.33062337]
[1772320208811,1.41073286,84.733,84.686,1.18083272]
[1772320208812,1.41073286,84.709,84.666,1.33062337]
[1772320209111,1.41073286,84.689,84.666,1.33062337]
[1772320209498,1.41073286,84.689,84.651,1.35767948]
[1772320210121,1.41073286,84.687,84.653,1.35767948]
[1772320210425,3.00175648,84.69,84.653,1.35767948]
[1772320210426,1.41073286,84.68,84.653,1.35767948]
[1772320211125,1.41073286,84.679,84.653,1.35767948]
[1772320212307,1.41073286,84.679,84.655,1.35767948]
[1772320213412,1.41073286,84.679,84.656,11.81251181]
[1772320213715,1.41073286,84.679,84.656,13.17019129]
[1772320213913,1.41073286,84.679,84.651,11.81318783]
[1772320214313,1.41073286,84.669,84.646,11.81384557]
[1772320215718,1.41073286,84.669,84.638,1.35767948]
[1772320216297,1.41073286,84.659,84.624,1.35767948]
[1772320216617,1.36477121,84.649,84.624,1.35767948]
[1772320217697,1.36477121,84.649,84.625,11.81683899]
[1772320218196,3.00175648,84.63,84.584,1.39009269]
[1772320218414,1.36477121,84.599,84.578,1.39009269]
[1772320218618,1.36477121,84.599,84.564,10.7342198]
[1772320218818,1.36477121,84.589,84.564,10.7342198]
[1772320219601,1.36477121,84.579,84.564,9.34412711]
[1772320220095,1.36477121,84.586,84.564,9.34412711]
[1772320221004,1.36477121,84.586,84.564,10.7342198]
[1772320221723,1.36477121,84.586,84.565,11.58905944]
[1772320222800,1.36477121,84.586,84.565,12.97915213]
[1772320224017,1.36477121,84.586,84.564,9.34412711]
[1772320225421,1.36477121,84.586,84.564,8.9315316]
[1772320225721,1.36477121,84.586,84.565,11.8252232]
[1772320225896,1.36477121,84.6,84.571,1.39009269]
[1772320229415,1.36477121,84.6,84.572,11.82424443]
[1772320229416,1.36477121,84.599,84.572,11.82424443]
[1772320229614,1.36477121,84.597,84.572,11.82424443]
[1772320230209,1.36477121,84.595,84.572,11.82424443]
[1772320230815,1.36477121,84.595,84.573,1.39009269]
[1772320232020,1.36477121,84.595,84.574,11.82396481]
[1772320233425,1.36477121,84.618,84.581,1.39009269]
[1772320233630,1.36477121,84.625,84.591,1.39009269]
[1772320234908,1.36477121,84.625,84.593,1.39009269]
[1772320235926,1.36477121,84.631,84.601,1.39009269]
[1772320236225,15.56524395,84.64,84.592,41.37507092]
[1772320236226,1.36477121,84.639,84.611,1.39009269]
[1772320236431,7.50345576,84.64,84.611,1.39009269]
[1772320236823,1.36477121,84.653,84.621,1.39009269]
[1772320237125,1.36477121,84.653,84.623,1.39009269]
[1772320239327,1.36477121,84.653,84.622,41.36040272]
[1772320239328,1.36477121,84.653,84.625,1.39009269]
[1772320241216,1.36477121,84.653,84.626,11.81669935]
[1772320241727,1.36477121,84.653,84.627,1.39009269]
[1772320243716,4.36982559,84.65,84.628,11.81642009]
[1772320244730,1.37221584,84.649,84.628,11.81642009]
[1772320244930,1.37221584,84.647,84.622,11.81720732]
[1772320245241,11.8136282,84.648,84.616,11.81804997]
[1772320245242,1.37221584,84.639,84.616,11.81804997]
[1772320246225,1.37221584,84.639,84.611,1.43056082]
[1772320248423,1.37221584,84.639,84.613,1.42350335]
[1772320248638,1.32752219,84.646,84.613,1.42350335]
[1772320250424,1.32752219,84.646,84.615,1.42350335]
[1772320253443,1.32752219,84.646,84.617,1.42350335]
[1772320255336,1.32752219,84.646,84.619,1.42350335]
[1772320255944,1.32752219,84.646,84.618,11.81781654]
[1772320256251,1.32752219,84.639,84.614,1.42350335]
[1772320256943,1.32752219,84.649,84.614,1.42350335]
[1772320257351,1.32752219,84.649,84.615,11.81823553]
[1772320257549,1.32752219,84.649,84.616,1.42350335]
[1772320260331,1.32752219,84.649,84.618,1.42350335]
[1772320261034,1.32752219,84.663,84.631,1.42350335]
[1772320261543,1.32752219,84.649,84.62,1.42350335]
[1772320261856,1.32752219,84.639,84.617,11.8179562]
[1772320262234,1.32752219,84.639,84.614,1.42350335]
[1772320262434,1.32752219,84.638,84.607,1.42350335]
[1772320262637,1.32752219,84.629,84.595,1.42350335]
[1772320263546,1.32752219,84.634,84.601,1.42350335]
[1772320264350,3.00505438,84.65,84.613,1.42350335]
[1772320264351,1.32752219,84.646,84.613,1.42350335]
[1772320267454,1.32752219,84.659,84.621,1.42350335]
[1772320268662,1.32752219,84.659,84.623,1.42350335]
[1772320269661,1.32752219,84.659,84.625,1.42350335]
[1772320272056,1.32752219,84.659,84.626,11.81669935]
[1772320272255,1.32752219,84.659,84.627,1.42350335]
[1772320273356,1.32752219,84.659,84.628,11.81642009]
[1772320273554,1.32752219,84.659,84.629,1.42350335]
[1772320274940,1.32752219,84.659,84.631,1.42350335]
[1772320277162,1.32752219,84.659,84.633,1.45211507]
[1772320280549,1.32752219,84.659,84.634,11.81558239]
[1772320284348,1.41015592,84.649,84.61,11.81893393]
[1772320284668,1.41015592,84.649,84.611,1.45211507]
[1772320284871,1.41015592,84.649,84.621,1.45211507]
[1772320286345,1.41015592,84.649,84.622,11.81725792]
[1772320286550,1.41015592,84.649,84.623,1.45211507]
[1772320287167,1.41015592,84.655,84.623,1.45211507]
[1772320288068,1.41015592,84.655,84.625,1.45211507]
[1772320288872,1.41015592,84.655,84.601,1.18201912]
[1772320288873,1.41015592,84.629,84.597,11.82073054]
[1772320289171,1.41015592,84.619,84.595,1.45211507]
[1772320290771,3.00505438,84.64,84.574,14.98501368]
[1772320290772,1.41015592,84.639,84.601,1.45211507]
[1772320291846,1.41015592,84.639,84.603,1.45211507]
[1772320293069,1.41015592,84.639,84.605,1.45211507]
[1772320294671,1.41015592,84.639,84.606,11.8194927]
[1772320294970,1.41015592,84.639,84.607,1.45211507]
[1772320295876,1.41015592,84.639,84.609,1.45211507]
[1772320296081,1.41015592,84.639,84.611,1.45211507]
[1772320296279,1.41015592,84.645,84.611,1.45211507]
[1772320297174,1.41015592,84.645,84.613,1.45211507]
[1772320298690,3.00505438,84.64,84.613,1.45211507]
[1772320298875,4.4152103,84.64,84.613,1.45211507]
[1772320299069,1.41015592,84.639,84.614,11.8183752]
[1772320299272,1.41015592,84.639,84.615,1.45211507]
[1772320299783,3.00505438,84.64,84.615,1.45211507]
[1772320300162,1.41015592,84.639,84.615,1.45211507]
[1772320305884,1.41015592,84.639,84.61,1.38891153]
[1772320308179,3.69383402,84.662,84.611,11.81879424]
[1772320308180,1.45615018,84.629,84.611,11.81879424]
[1772320308370,1.45615018,84.619,84.606,11.81938754]
[1772320308686,1.45615018,84.619,84.577,1.40350038]
[1772320308882,3.00613934,84.59,84.577,1.40350038]
[1772320309780,3.00613934,84.6,84.577,1.40350038]
[1772320310078,4.46228952,84.6,84.577,1.40350038]
[1772320310286,3.00613934,84.59,84.577,1.40350038]
[1772320310690,3.00613934,84.59,84.575,11.823825]
[1772320311072,3.00613934,84.59,84.575,13.22732538]
[1772320312273,4.46228952,84.59,84.575,11.823825]
[1772320312572,4.46228952,84.59,84.569,13.22808777]
[1772320312978,3.00613934,84.59,84.574,15.20611758]
[1772320314075,4.46228952,84.58,84.563,1.40350038]
[1772320314589,3.00613934,84.6,84.56,0.2]
[1772320314590,3.00613934,84.57,84.56,0.2]
[1772320314786,4.46228952,84.57,84.56,0.2]
[1772320315088,4.46228952,84.57,84.545,1.40350038]
[1772320315089,1.45615018,84.569,84.545,1.40350038]
[1772320315386,3.00613934,84.56,84.545,1.40350038]
[1772320318987,16.24828911,84.57,84.545,1.40350038]
[1772320319185,11.82088987,84.596,84.561,1.40350038]
[1772320319386,1.4151525,84.602,84.561,1.40350038]
[1772320319387,1.41285149,84.599,84.561,1.40350038]
[1772320319586,3.00613934,84.59,84.561,1.40350038]
[1772320319783,1.41285149,84.595,84.561,1.40350038]
[1772320319986,4.41899083,84.6,84.561,1.40350038]
[1772320320187,3.00613934,84.6,84.561,1.40350038]
[1772320320488,4.41899083,84.6,84.561,1.40350038]
[1772320320886,1.41057379,84.599,84.561,1.40350038]
[1772320321486,11.82061041,84.598,84.563,1.40350038]
[1772320321791,7.57228539,84.617,84.571,1.40350038]
[1772320321792,3.00613934,84.61,84.571,1.40350038]
[1772320321990,7.57228539,84.617,84.571,1.40350038]
[1772320321991,13.22697566,84.612,84.571,1.40350038]
[1772320322175,1.4083211,84.609,84.571,1.40350038]
[1772320323692,1.4083211,84.609,84.573,1.40350038]
[1772320323884,3.00613934,84.61,84.573,1.40350038]